bitfinex-derivatives/quotes_ETHF0:USTF0_20240822
["timestamp","ask_amount","ask_price","bid_price","bid_amount"]
[1724349370487,0.00978288,2604.3,2604.2,4.93698]
[1724349370694,0.00978288,2604.3,2604.2,0.38388]
[1724349371201,3.58358288,2604.3,2603.9,0.38392]
[1724349371499,3.94058288,2604.3,2604.2,0.38388]
[1724349372099,0.73278288,2604.3,2604.2,0.38388]
[1724349373197,0.73278288,2604.3,2604.1,0.38389]
[1724349373400,3.94058288,2604.3,2604.2,0.38388]
[1724349374098,4.32445288,2604.3,2604.1,0.38389]
[1724349374303,3.94058288,2604.3,2603.8,0.7305]
[1724349374488,4.32445288,2604.3,2604.1,0.38389]
[1724349374691,4.32445288,2604.3,2603.9,0.38392]
[1724349374692,0.3839,2604.1,2603.9,0.38392]
[1724349374901,3.2078,2604.0,2603.8,0.38393]
[1724349375102,0.3582,2603.9,2603.7,0.38394]
[1724349375299,0.3626,2603.8,2603.7,0.38394]
[1724349375500,0.7344,2603.8,2603.7,0.38394]
[1724349376504,0.7344,2603.8,2603.7,1.34383]
[1724349376702,3.2078,2604.0,2603.9,0.38392]
[1724349380203,3.2078,2604.0,2603.9,1.34374]
[1724349380508,0.7552,2604.2,2604.1,1.34363]
[1724349381002,0.3718,2604.2,2604.1,1.34363]
[1724349381207,3.21758288,2604.3,2604.2,1.34359]
[1724349381508,0.00978288,2604.3,2604.2,1.34359]
[1724349381698,0.00978288,2604.3,2604.2,5.18359]
[1724349382709,0.00978288,2604.3,2604.2,0.38388]
[1724349383204,4.22508288,2604.3,2604.2,0.38388]
[1724349383801,4.22508288,2604.3,2604.0,0.3839]
[1724349384105,1.13729,2604.2,2603.6,4.27391]
[1724349384304,1.13729,2604.2,2604.0,0.3839]
[1724349384305,0.7534,2604.2,2604.0,0.3839]
[1724349384801,0.7534,2604.2,2604.1,0.38389]
[1724349387506,0.38508288,2604.3,2604.2,0.38388]
[1724349387701,0.76318288,2604.3,2604.2,0.38388]
[1724349390705,0.38508288,2604.3,2604.2,0.38388]
[1724349392811,0.38508288,2604.3,2604.2,1.34359]
[1724349393612,0.38508288,2604.3,2604.2,0.38388]
[1724349394408,0.38508288,2604.3,2604.2,1.34359]
[1724349395197,0.00978288,2604.3,2604.2,1.34359]
[1724349396512,0.00978288,2604.3,2604.2,5.18359]
[1724349396713,0.00978288,2604.3,2604.2,8.49759]
[1724349397711,0.00978288,2604.3,2604.2,9.4573]
[1724349398310,0.00978288,2604.3,2604.2,14.4573]
[1724349398912,0.7329,2604.9,2604.8,0.38379]
[1724349399713,0.73600008,2604.9,2604.8,0.3881204]
[1724349400419,0.00310008,2604.9,2604.8,0.3881204]
[1724349400722,0.74540008,2604.9,2604.8,0.3881204]
[1724349403406,0.00310008,2604.9,2604.8,0.3881204]
[1724349403611,0.00310008,2604.9,2604.8,1.1423204]
[1724349404618,0.00310008,2604.9,2604.8,0.7586204]
[1724349407316,0.00310008,2604.9,2604.8,1.7181104]
[1724349410221,0.00310008,2604.9,2604.8,0.3881204]
[1724349411023,4.22608008,2604.9,2604.8,0.0043304]
[1724349411330,4.72608008,2604.9,2604.8,0.0043304]
[1724349411626,3.84230008,2604.9,2604.8,0.3881204]
[1724349413836,0.00310008,2604.9,2604.8,0.3881204]
[1724349414022,3.84230008,2604.9,2604.8,0.3881204]
[1724349414222,0.00310008,2604.9,2604.8,0.3881204]
[1724349414843,4.22608008,2604.9,2604.8,0.3881204]
[1724349415240,9.22608008,2604.9,2604.8,0.0043304]
[1724349415446,10.18553008,2604.9,2604.8,0.0043304]
[1724349415739,10.45553008,2604.9,2604.8,0.0043304]
[1724349417954,4.49608008,2604.9,2604.8,0.0043304]
[1724349418138,4.49608008,2604.9,2604.8,0.3881204]
[1724349418343,4.49608008,2604.9,2604.8,0.0043304]
[1724349419046,4.49608008,2604.9,2604.8,0.3881204]
[1724349419249,4.22608008,2604.9,2604.8,0.0043304]
[1724349421543,4.22608008,2604.9,2604.8,0.3881204]
[1724349421741,4.22608008,2604.9,2604.8,0.0043304]
[1724349422744,4.22608008,2604.9,2604.8,0.3881204]
[1724349422940,3.84230008,2604.9,2604.8,0.3881204]
[1724349423351,0.00310008,2604.9,2604.8,0.3881204]
[1724349423843,3.84230008,2604.9,2604.8,0.3881204]
[1724349424151,4.22608008,2604.9,2604.8,0.3881204]
[1724349424449,5.18553008,2604.9,2604.8,0.0043304]
[1724349424648,4.22608008,2604.9,2604.8,0.0043304]
[1724349425149,0.38688008,2604.9,2604.8,0.3881204]
[1724349425347,0.00310008,2604.9,2604.8,0.3881204]
[1724349426248,0.38688008,2604.9,2604.8,0.0043304]
[1724349426549,0.38688008,2604.9,2604.8,0.3881204]
[1724349426550,0.00310008,2604.9,2604.8,0.3881204]
[1724349429550,0.38688008,2604.9,2604.8,0.3881204]
[1724349430547,0.00310008,2604.9,2604.8,0.3881204]
[1724349430750,0.00310008,2604.9,2604.8,1.1381204]
[1724349430951,0.00310008,2604.9,2604.8,1.5187204]
[1724349431453,0.38688008,2604.9,2604.8,0.7687204]
[1724349431856,4.22608008,2604.9,2604.8,0.0043304]
[1724349432055,4.60918008,2604.9,2604.8,0.0043304]
[1724349432248,4.60918008,2604.9,2604.8,0.3881204]
[1724349432454,4.60918008,2604.9,2604.8,0.0043304]
[1724349432963,13.31863008,2604.9,2604.8,0.0043304]
[1724349433161,14.27808008,2604.9,2604.8,0.0043304]
[1724349433459,8.31863008,2604.9,2604.8,0.0043304]
[1724349433647,13.31863008,2604.9,2604.8,0.0043304]
[1724349434649,8.31863008,2604.9,2604.8,0.0043304]
[1724349435062,13.31863008,2604.9,2604.8,0.0043304]
[1724349435655,8.31863008,2604.9,2604.8,0.0043304]
[1724349436053,13.31863008,2604.9,2604.8,0.0043304]
[1724349436256,18.3119725,2604.9,2604.8,0.0043304]
[1724349436460,13.31863008,2604.9,2604.8,0.0043304]
[1724349437062,14.27808008,2604.9,2604.8,0.0043304]
[1724349438063,13.31863008,2604.9,2604.8,0.0043304]
[1724349438263,8.31863008,2604.9,2604.8,0.0043304]
[1724349439367,13.31863008,2604.9,2604.8,0.0043304]
[1724349441265,11.96696763,2604.9,2604.8,0.0043304]
[1724349441461,9.21696763,2604.9,2604.8,0.0043304]
[1724349441661,8.71821923,2604.9,2604.8,0.0043304]
[1724349441855,8.71821923,2604.9,2604.8,0.3881204]
[1724349441856,4.49523923,2604.9,2604.8,0.3881204]
[1724349442056,0.00310008,2604.9,2604.8,0.3881204]
[1724349442269,4.49523923,2604.9,2604.8,0.3881204]
[1724349442461,4.87901923,2604.9,2604.8,0.3881204]
[1724349442666,4.87901923,2604.9,2604.8,0.0043304]
[1724349442863,4.87901923,2604.9,2604.8,0.3881204]
[1724349443064,4.87901923,2604.9,2604.8,0.0043304]
[1724349443766,5.83846923,2604.9,2604.8,0.0043304]
[1724349443969,5.45553008,2604.9,2604.8,0.0043304]
[1724349446971,4.49608008,2604.9,2604.8,0.0043304]
[1724349448063,5.45553008,2604.9,2604.8,0.0043304]
[1724349449667,4.49608008,2604.9,2604.8,0.0043304]
[1724349452868,4.49608008,2604.9,2604.8,0.3881204]
[1724349453874,4.11230008,2604.9,2604.8,0.3881204]
[1724349454276,4.49608008,2604.9,2604.8,0.3881204]
[1724349454476,4.11230008,2604.9,2604.8,0.3881204]
[1724349454671,0.00310008,2604.9,2604.8,0.3881204]
[1724349456865,0.00310008,2604.9,2604.8,1.3476104]
[1724349457465,0.00310008,2604.9,2604.8,0.3881204]
[1724349459175,0.00310008,2604.9,2604.8,5.1868104]
[1724349459371,4.49852247,2604.9,2604.8,5.1868104]
[1724349459579,3.2078,2605.0,2604.9,1.34323]
[1724349459773,3.2078,2605.0,2604.9,5.18243]
[1724349460275,3.2078,2605.0,2604.9,5.53903]
[1724349460576,3.21123412,2605.0,2604.9,5.96158]
[1724349462065,3.21123412,2605.0,2604.9,4.57958]
[1724349462379,3.21123412,2605.0,2604.9,5.96158]
[1724349462573,3.21123412,2605.0,2604.9,4.57958]
[1724349464685,0.00343412,2605.0,2604.9,4.57958]
[1724349464983,0.00343412,2605.0,2604.9,5.53903]
[1724349469287,0.00343412,2605.0,2604.9,11.49848]
[1724349471677,0.00343412,2605.0,2604.9,4.57958]
[1724349474085,0.00343412,2605.0,2604.9,0.74038]
[1724349474387,0.00343412,2605.0,2604.9,4.57958]
[1724349474681,0.00343412,2605.0,2604.9,0.74038]
[1724349474987,0.00343412,2605.0,2604.9,4.57958]
[1724349477289,0.00343412,2605.0,2604.9,5.53903]
[1724349479388,0.00343412,2605.0,2604.9,6.49848]
[1724349479579,4.12e-06,2605.0,2604.9,6.49848]
[1724349480088,4.12e-06,2605.0,2604.9,34.49848]
[1724349480685,4.12e-06,2605.0,2604.9,33.53903]
[1724349481088,4.12e-06,2605.0,2604.9,5.53903]
[1724349483289,4.12e-06,2605.0,2604.9,4.57958]
[1724349483490,4.12e-06,2605.0,2604.9,0.74038]
[1724349483799,4.12e-06,2605.0,2604.9,1.69983]
[1724349485987,4.12e-06,2605.0,2604.9,0.74038]
[1724349486386,4.12e-06,2605.0,2604.9,1.69983]
[1724349487011,4.12e-06,2605.0,2604.9,1.34323]
[1724349488393,4.12e-06,2605.0,2604.8,1.3320804]
[1724349488394,4.12e-06,2605.0,2604.8,0.0043304]
[1724349488595,4.12e-06,2605.0,2604.9,0.38378]
[1724349488596,3.59157412,2605.0,2604.9,0.38378]
[1724349488792,4.12e-06,2605.0,2604.9,0.38378]
[1724349488983,4.12e-06,2605.0,2604.9,1.71153]
[1724349489182,4.12e-06,2605.0,2604.9,6.51018]
[1724349491104,4.12e-06,2605.0,2604.9,5.55073]
[1724349491991,4.12e-06,2605.0,2604.9,4.59128]
[1724349492384,4.12e-06,2605.0,2604.9,5.97328]
[1724349493596,3.20780412,2605.0,2604.9,1.76578]
[1724349493900,3.59156412,2605.0,2604.9,1.382]
[1724349494096,7.43076412,2605.0,2604.9,1.382]
[1724349494287,0.38378,2604.9,2604.8,1.3863304]
[1724349494597,1.34323,2604.9,2604.8,0.0043304]
[1724349494792,5.18243,2604.9,2604.8,0.0043304]
[1724349496295,0.38379,2604.8,2604.7,1.382]
[1724349496495,0.38379,2604.8,2604.5,0.38382]
[1724349496496,9.05329828,2604.8,2604.5,0.38382]
[1724349496696,3.2078,2604.6,2604.2,3.6658]
[1724349496893,3.59163,2604.6,2604.2,3.319]
[1724349497097,3.59163,2604.6,2604.4,0.38384]
[1724349497405,8.08142828,2604.6,2604.5,0.38384]
[1724349497606,3.59163,2604.6,2604.5,0.38384]
[1724349497904,7.43083,2604.6,2604.5,0.38384]
[1724349498108,11.53679828,2604.6,2604.5,0.38384]
[1724349498302,7.047,2604.6,2604.5,0.38384]
[1724349498513,7.43082,2604.6,2604.5,0.38384]
[1724349499499,7.79242,2604.6,2604.5,0.38384]
[1724349501393,7.79242,2604.6,2604.4,0.00272172]
[1724349501394,0.38384,2604.5,2604.4,0.38656172]
[1724349501801,3.95323,2604.6,2604.5,0.38384]
[1724349502206,7.79243,2604.6,2604.5,0.38384]
[1724349502408,3.95323,2604.6,2604.5,0.38384]
[1724349502609,3.5694,2604.6,2604.5,0.38384]
[1724349502994,3.5694,2604.6,2604.5,0.75294]
[1724349503608,7.79242,2604.6,2604.5,0.75294]
[1724349504203,3.5694,2604.6,2604.5,0.75294]
[1724349504509,3.95322,2604.6,2604.5,0.75294]
[1724349504805,7.79242,2604.6,2604.5,0.75294]
[1724349505202,3.95322,2604.6,2604.5,0.75294]
[1724349505599,7.79242,2604.6,2604.5,0.75294]
[1724349509404,3.95322,2604.6,2604.5,0.75294]
[1724349509610,3.5694,2604.6,2604.5,4.07194]
[1724349509801,3.2078,2604.6,2604.5,5.03154]
[1724349510002,3.2078,2604.6,2604.5,8.65224]
[1724349510203,3.2078,2604.6,2604.5,4.07194]
[1724349513205,3.2078,2604.6,2604.5,5.38264]
[1724349513404,3.2078,2604.6,2604.5,4.42304]
[1724349514617,3.2078,2604.6,2604.5,4.07194]
[1724349515211,0.7243,2604.8,2604.7,0.38381]
[1724349515922,0.3568,2604.8,2604.7,0.38381]
[1724349518424,0.3568,2604.8,2604.7,1.76681]
[1724349520260,3.2078,2604.9,2604.8,0.38379]
[1724349520447,4.12e-06,2605.0,2604.9,0.38378]
[1724349520631,4.12e-06,2605.0,2604.9,2.12918]
[1724349524825,0.38376412,2605.0,2604.9,1.76678]
[1724349525335,0.38376412,2605.0,2604.9,1.383]
[1724349525827,0.38376412,2605.0,2604.9,1.76678]
[1724349528132,0.38376412,2605.0,2604.9,1.383]
[1724349528324,0.38376412,2605.0,2604.9,1.76678]
[1724349529427,0.38378,2604.9,2604.8,0.38378]
[1724349529628,4.3117,2604.9,2604.8,1.76678]
[1724349529827,4.69548,2604.9,2604.8,1.76678]
[1724349530437,8.53468,2604.9,2604.8,1.383]
[1724349530739,9.49413,2604.9,2604.8,1.383]
[1724349532340,8.53468,2604.9,2604.8,1.383]
[1724349532753,8.53468,2604.9,2604.8,1.76679]
[1724349533038,8.1509,2604.9,2604.8,1.76679]
[1724349533233,8.53468,2604.9,2604.8,1.383]
[1724349533638,13.02447828,2604.9,2604.8,1.383]
[1724349535346,13.02447828,2604.9,2604.8,1.76679]
[1724349535640,13.02447828,2604.9,2604.8,1.383]
[1724349535938,13.02447828,2604.9,2604.8,1.76679]
[1724349536650,13.02447828,2604.9,2604.8,1.383]
[1724349536947,13.02447828,2604.9,2604.8,1.76679]
[1724349537436,13.02447828,2604.9,2604.4,0.00272172]
[1724349537637,0.38383,2604.6,2604.5,0.38382]
[1724349537843,0.38381,2604.7,2604.6,0.38382]
[1724349538043,3.59161,2604.7,2604.6,1.76682]
[1724349538335,3.2078,2604.7,2604.6,1.76682]
[1724349538742,3.59161,2604.7,2604.6,0.38382]
[1724349538944,3.59161,2604.7,2604.6,1.76682]
[1724349539135,8.08140828,2604.7,2604.6,1.76682]
[1724349539934,8.08140828,2604.7,2604.6,1.383]
[1724349540439,8.08140828,2604.7,2604.6,1.76682]
[1724349541536,0.38383,2604.5,2604.4,0.00272172]
[1724349541736,2.72642,2604.5,2604.4,0.00272172]
[1724349542048,6.56562,2604.5,2604.4,0.00272172]
[1724349542251,7.64502,2604.5,2604.4,0.00272172]
[1724349542539,4.9186,2604.5,2604.4,1.38572172]
[1724349543438,5.30243,2604.5,2604.4,1.38572172]
[1724349543742,5.30243,2604.5,2604.4,1.76957172]
[1724349544545,1.46323,2604.5,2604.4,0.38657172]
[1724349544743,1.46323,2604.5,2604.4,0.00272172]
[1724349545042,1.46323,2604.5,2604.4,0.38657172]
[1724349546236,1.0794,2604.5,2604.4,0.38657172]
[1724349546544,4.16735,2604.7,2604.6,0.38382]
[1724349546545,3.59162,2604.7,2604.6,0.38382]
[1724349546845,0.38382,2604.6,2604.5,0.75933]
[1724349547047,0.38383,2604.5,2604.4,0.38656172]
[1724349547251,1.08673,2604.5,2604.4,0.38656172]
[1724349547547,1.08673,2604.5,2604.4,0.00272172]
[1724349548136,1.45203,2604.5,2604.4,0.38657172]
[1724349548536,5.94182828,2604.5,2604.4,0.38657172]
[1724349548736,5.94182828,2604.5,2604.4,0.00272172]
[1724349548947,5.94182828,2604.5,2604.4,0.38657172]
[1724349549946,4.48979828,2604.5,2604.4,0.38657172]
[1724349550142,4.48979828,2604.6,2604.5,0.38383]
[1724349550342,8.19868755,2604.7,2604.6,0.38382]
[1724349550343,13.07229583,2604.7,2604.6,0.38382]
[1724349550539,3.59161,2604.7,2604.6,0.38382]
[1724349552845,3.2078,2604.7,2604.6,0.38382]
[1724349553050,4.48979828,2604.8,2604.7,0.38381]
[1724349553248,5.96857828,2604.9,2604.8,0.38379]
[1724349553640,5.96857828,2604.9,2604.5,0.7375]
[1724349553641,5.58479828,2604.9,2604.6,0.38382]
[1724349553842,3.2078,2604.7,2604.6,0.38382]
[1724349555145,3.59161,2604.7,2604.6,0.38382]
[1724349555853,0.38382,2604.6,2604.5,0.38382]
[1724349556399,3.2078,2604.7,2604.4,0.00272172]
[1724349556550,0.76533,2604.5,2604.4,0.00272172]
[1724349556946,5.31993,2604.5,2604.4,0.00272172]
[1724349558355,1.0969,2604.5,2604.4,0.38657172]
[1724349559260,1.48073,2604.5,2604.4,0.38657172]
[1724349559945,1.0969,2604.5,2604.4,0.38657172]
[1724349560351,1.48074,2604.5,2604.4,0.38657172]
[1724349560747,5.31994,2604.5,2604.4,0.38657172]
[1724349561558,5.31994,2604.5,2604.4,0.00272172]
[1724349563157,8.52774,2604.5,2604.4,0.00272172]
[1724349563361,8.52774,2604.5,2604.4,0.38657172]
[1724349565645,4.68854,2604.5,2604.4,0.38657172]
[1724349565852,4.3047,2604.5,2604.4,0.38657172]
[1724349566160,3.9403,2604.5,2604.4,0.38657172]
[1724349566559,3.2078,2604.5,2604.4,1.76957172]
[1724349568359,3.9498,2604.8,2604.4,5.22492172]
[1724349568562,3.2078,2604.5,2604.4,0.00272172]
[1724349568764,4.55124,2604.5,2604.4,0.00272172]
[1724349569064,8.39044,2604.5,2604.4,0.00272172]
[1724349570152,16.11044,2604.5,2604.4,0.00272172]
[1724349570454,0.95967,2604.4,2603.8,0.74753]
[1724349570652,3.2078,2603.9,2603.8,0.74753]
[1724349571465,3.2078,2603.9,2603.8,0.75139736]
[1724349573109,1.059,2604.0,2603.9,0.38392]
[1724349573461,1.059,2604.0,2603.8,0.75139736]
[1724349573687,3.2078,2603.9,2603.8,0.75139736]
[1724349576771,3.2078,2603.9,2603.8,1.71124736]
[1724349576968,3.2078,2603.9,2603.8,8.87004736]
[1724349581066,3.2078,2603.9,2603.8,14.82989736]
[1724349581067,3.20507828,2603.9,2603.8,14.82989736]
[1724349581371,4.103,2604.6,2604.5,0.38384]
[1724349581566,0.38381,2604.7,2604.6,0.38382]
[1724349582161,0.38381,2604.7,2604.5,0.38383]
[1724349582357,0.38381,2604.7,2604.6,0.38382]
[1724349582864,0.38381,2604.7,2604.3,4.4287]
[1724349583266,4.6783,2604.8,2604.6,0.38381]
[1724349583464,4.6783,2604.8,2604.7,0.3752]
[1724349583867,0.95943412,2605.0,2604.8,0.38378]
[1724349583868,0.38377412,2605.0,2604.8,0.38378]
[1724349584071,4.12e-06,2605.0,2604.8,0.38378]
[1724349584274,0.74187412,2605.0,2604.7,0.3752]
[1724349584569,0.74187412,2605.0,2604.8,0.38378]
[1724349585366,0.35810412,2605.0,2604.9,0.38378]
[1724349585566,4.12e-06,2605.0,2604.9,0.38378]
[1724349586971,4.12e-06,2605.0,2604.9,11.14188]
[1724349587385,4.12e-06,2605.0,2604.9,10.18243]
[1724349589195,4.12e-06,2605.0,2604.9,4.22298]
[1724349589792,4.12e-06,2605.0,2604.9,0.38378]
[1724349593091,4.12e-06,2605.0,2604.9,5.18243]
[1724349593293,4.12e-06,2605.0,2604.9,5.56033]
[1724349595695,4.12e-06,2605.0,2604.9,4.60088]
[1724349596483,4.12e-06,2605.0,2604.9,4.22298]
[1724349598499,4.12e-06,2605.0,2604.9,4.59388]
[1724349600427,4.12e-06,2605.0,2604.9,5.55333]
[1724349600496,4.12e-06,2605.0,2604.9,4.59388]
[1724349600801,4.12e-06,2605.0,2604.9,4.22298]
[1724349604211,4.12e-06,2605.0,2604.9,0.38378]
[1724349604500,0.35550412,2605.0,2604.9,0.38378]
[1724349604696,1.12186412,2605.0,2604.8,0.38378]
[1724349604896,0.73810412,2605.0,2604.7,0.3752]
[1724349605203,0.73810412,2605.0,2604.9,0.38378]
[1724349609228,4.12e-06,2605.0,2604.9,5.18243]
[1724349609299,4.12e-06,2605.0,2604.9,5.91603]
[1724349611295,4.12e-06,2605.0,2604.9,4.22298]
[1724349611497,4.12e-06,2605.0,2604.9,0.38378]
[1724349614796,0.35620412,2605.0,2604.9,0.38378]
[1724349615008,0.35620412,2605.0,2604.8,0.38378]
[1724349615009,1.11296412,2605.0,2604.8,0.38378]
[1724349615203,0.72920412,2605.0,2604.5,3.318]
[1724349615401,0.72920412,2605.0,2604.5,3.6854]
[1724349615604,3.59161,2604.7,2604.5,0.38382]
[1724349615906,1.0957,2604.6,2604.5,0.38382]
[1724349616098,1.0957,2604.6,2604.2,3.318]
[1724349616296,0.38384,2604.5,2604.2,0.38388]
[1724349617002,1.0957,2604.6,2604.4,0.38385]
[1724349617507,3.8392,2604.5,2603.9,3.318]
[1724349617711,1.0957,2604.6,2604.1,0.38388]
[1724349618106,0.38384,2604.5,2604.2,0.38388]
[1724349618301,1.0957,2604.6,2603.9,3.318]
[1724349618521,1.0957,2604.6,2604.4,0.38384]
[1724349618977,3.8392,2604.5,2604.3,0.38386]
[1724349619212,3.8392,2604.5,2603.9,3.318]
[1724349619213,1.0957,2604.6,2604.2,0.38387]
[1724349619405,0.38385,2604.5,2604.2,0.38388]
[1724349619711,3.59165,2604.4,2604.1,0.38389]
[1724349620007,3.59165,2604.4,2603.9,3.318]
[1724349620008,3.2078,2604.4,2603.9,3.318]
[1724349620506,3.2078,2604.4,2604.1,0.38388]
[1724349620708,0.38387,2604.3,2604.0,0.3839]
[1724349621004,0.3605,2604.2,2603.9,0.38392]
[1724349621206,0.368,2604.1,2604.0,0.38391]
[1724349626212,0.368,2604.1,2604.0,0.76531]
[1724349626808,0.7341,2604.2,2604.1,0.3839]
[1724349627509,3.2078,2604.4,2604.3,0.38387]
[1724349627699,1.47923,2604.6,2604.3,0.38387]
[1724349627904,1.0954,2604.6,2604.4,0.38385]
[1724349628100,1.0954,2604.6,2604.2,3.318]
[1724349628314,1.0954,2604.6,2604.4,0.38384]
[1724349628610,1.0954,2604.6,2604.5,0.38384]
[1724349629016,4.9346,2604.6,2604.5,0.38384]
[1724349629512,5.31842,2604.6,2604.4,0.38384]
[1724349629698,1.47922,2604.6,2604.2,3.318]
[1724349629906,1.47923,2604.6,2604.3,0.38386]
[1724349630101,1.0954,2604.6,2604.2,0.38388]
[1724349630405,0.38386,2604.4,2604.2,0.38388]
[1724349630910,0.38385,2604.5,2604.3,0.38386]
[1724349631113,1.47923,2604.6,2604.4,0.38385]
[1724349634509,1.47923,2604.6,2604.0,4.89546]
[1724349634714,1.47923,2604.6,2604.4,0.38384]
[1724349635539,1.47923,2604.6,2604.5,0.38384]
[1724349635708,1.47923,2604.6,2604.4,0.38384]
[1724349636613,0.38384,2604.5,2604.4,0.38384]
[1724349637020,1.47923,2604.6,2604.4,0.38384]
[1724349637316,1.0954,2604.6,2604.5,0.38384]
[1724349638113,0.3526,2604.6,2604.5,0.38384]
[1724349638316,3.2078,2604.7,2604.6,0.38382]
[1724349640727,0.75839,2604.8,2604.6,0.38382]
[1724349641114,0.38382,2604.6,2604.5,0.38383]
[1724349641316,0.38384,2604.5,2604.4,0.76395]
[1724349641512,1.11884,2604.5,2604.4,0.38385]
[1724349641723,1.11885,2604.5,2604.3,0.38386]
[1724349642025,0.3504,2604.4,2604.3,0.38386]
[1724349643522,3.59161,2604.7,2604.6,0.38382]
[1724349643918,3.59161,2604.7,2604.5,0.38383]
[1724349644118,3.59161,2604.7,2604.6,0.3536]
[1724349644629,3.2078,2604.7,2604.6,0.73742]
[1724349646521,3.2078,2604.7,2603.5,5.19248464]
[1724349646522,0.38383,2604.6,2604.4,0.38384]
[1724349646723,3.2078,2604.7,2604.1,0.3635]
[1724349646925,0.38387,2604.3,2604.1,0.74738]
[1724349647123,0.3755,2604.2,2604.1,0.74738]
[1724349647326,0.7524,2604.2,2604.1,0.74738]
[1724349649630,0.7524,2604.2,2604.1,4.06538]
[1724349649833,0.3613,2604.4,2604.3,0.38387]
[1724349652021,0.74515,2604.4,2604.3,0.38387]
[1724349652229,7.4091,2604.4,2604.0,0.3839]
[1724349652423,0.95967,2604.3,2603.8,0.00386736]
[1724349652634,0.7046,2604.2,2603.9,0.38392]
[1724349652904,3.59171,2604.1,2603.9,0.38392]
[1724349653022,0.7046,2604.2,2603.8,0.00386736]
[1724349653224,0.7046,2604.2,2604.1,0.38389]
[1724349655436,0.7046,2604.2,2604.0,0.3839]
[1724349655637,1.08848,2604.2,2604.0,0.3839]
[1724349655936,0.7046,2604.2,2604.1,0.38389]
[1724349657139,1.08848,2604.2,2604.0,0.3839]
[1724349658531,0.38392,2604.0,2603.8,0.38779736]
[1724349658734,0.38392,2603.9,2603.8,0.00386736]
[1724349659038,0.74432,2603.9,2603.8,0.00386736]
[1724349659228,4.58432,2603.9,2603.8,0.00386736]
[1724349659429,9.58432,2603.9,2603.8,0.00386736]
[1724349661326,4.58432,2603.9,2603.8,0.00386736]
[1724349661835,0.74432,2603.9,2603.8,0.00386736]
[1724349662530,4.58512,2603.9,2603.8,0.00386736]
[1724349667140,9.58512,2603.9,2603.8,0.00386736]
[1724349667340,10.54494,2603.9,2603.8,0.00386736]
[1724349668047,5.54494,2603.9,2603.8,0.00386736]
[1724349668234,4.58512,2603.9,2603.8,0.00386736]
[1724349668435,0.3604,2603.9,2603.8,0.00386736]
[1724349668739,0.3604,2603.9,2603.8,0.74060736]
[1724349668931,3.2078,2604.0,2603.9,0.38392]
[1724349669131,3.2078,2604.0,2603.8,0.74059736]
[1724349669336,3.2078,2604.0,2603.9,0.38392]
[1724349669542,0.3501,2604.1,2603.9,0.38392]
[1724349669735,0.3501,2604.1,2603.8,0.74059736]
[1724349669933,0.734,2604.1,2603.8,0.74059736]
[1724349670542,0.3501,2604.1,2604.0,0.38391]
[1724349670738,0.734,2604.1,2603.8,0.35666736]
[1724349670940,0.38391,2604.0,2603.8,0.74059736]
[1724349671641,0.3501,2604.1,2603.8,0.35666736]
[1724349671839,0.38392,2603.9,2603.8,0.35666736]
[1724349672037,0.38392,2604.0,2603.8,0.74060736]
[1724349673158,0.38392,2603.9,2603.8,0.00386736]
[1724349673638,5.17472,2603.9,2603.8,0.00386736]
[1724349673833,6.13454,2603.9,2603.8,0.00386736]
[1724349674544,11.13454,2603.9,2603.8,0.00386736]
[1724349674730,6.13454,2603.9,2603.8,0.00386736]
[1724349675645,11.13454,2603.9,2603.8,0.00386736]
[1724349677539,6.13454,2603.9,2603.8,0.00386736]
[1724349679943,6.13454,2603.9,2603.4,0.00575164]
[1724349679944,0.38398,2603.5,2603.4,0.00575164]
[1724349680241,4.14178,2603.5,2603.4,0.00575164]
[1724349680437,4.14178,2603.5,2603.4,1.64e-06]
[1724349680438,14.90252,2603.5,2603.4,1.64e-06]
[1724349680638,0.38408,2602.9,2602.6,0.3725]
[1724349680839,0.38408,2602.9,2602.6,0.76049379]
[1724349680840,0.38786977,2602.9,2602.6,0.76049379]
[1724349681245,1.13476977,2602.9,2602.6,0.76049379]
[1724349682148,1.13476977,2602.9,2602.7,0.3841]
[1724349682341,1.13476977,2602.9,2602.6,0.37638379]
[1724349682548,1.13476977,2602.9,2602.6,0.76048379]
[1724349682745,0.75068977,2602.9,2602.6,0.37638379]
[1724349683049,0.00378977,2602.9,2602.8,0.38409]
[1724349683450,0.00378977,2602.9,2602.8,4.22569]
[1724349684153,0.00378977,2602.9,2602.8,5.18591]
[1724349684345,0.00378977,2602.9,2602.8,5.90081]
[1724349684549,0.00378977,2602.9,2602.8,4.94059]
[1724349685157,0.00378977,2602.9,2602.8,5.90081]
[1724349686752,3.59179,2603.5,2602.9,0.96019]
[1724349686953,0.7025,2603.6,2602.8,4.94059]
[1724349686954,0.7025,2603.6,2603.0,0.96015]
[1724349687161,4.45535164,2603.7,2603.1,0.3746]
[1724349687458,0.38398,2603.6,2603.3,0.384]
[1724349687648,0.37595055,2603.6,2603.4,0.384]
[1724349688153,0.00385055,2603.6,2603.5,0.74548]
[1724349689651,0.00385055,2603.6,2603.5,4.58628]
[1724349694355,0.38782055,2603.6,2603.5,0.3615]
[1724349694551,1.10132055,2603.6,2603.5,0.3615]
[1724349694760,0.00385055,2603.6,2603.5,0.74548]
[1724349694957,0.00385055,2603.6,2603.5,0.3615]
[1724349695352,0.00385055,2603.6,2603.5,1.12508]
[1724349696647,0.00385055,2603.6,2603.5,0.7411]
[1724349696853,0.00385055,2603.6,2603.5,1.12508]
[1724349697057,0.00385055,2603.6,2603.5,4.96588]
[1724349697353,0.00575164,2603.7,2603.6,0.38397]
[1724349697560,0.00575164,2603.7,2603.6,7.81317]
[1724349698258,0.01044863,2603.7,2603.6,5.5653]
[1724349698458,0.01044863,2603.7,2603.6,8.7731]
[1724349698669,0.01044863,2603.7,2603.6,17.0911]
[1724349698847,0.01044863,2603.7,2603.6,18.05103]
[1724349699168,3.95574,2604.5,2603.7,0.95989]
[1724349699359,3.95574,2604.5,2604.3,0.38386]
[1724349699564,3.5719,2604.5,2604.3,0.38386]
[1724349699762,3.5719,2604.5,2603.9,3.2078]
[1724349699763,3.95574,2604.5,2604.2,0.38387]
[1724349700256,3.95939463,2604.5,2604.2,0.38387]